[Event "45th FIDE Womens Olympiad 2024"]
[Site "Budapest"]
[Date "2024.09.12"]
[Round "2.17"]
[White "Rivera, Ingris"]
[Black "Song, Yuxin"]
[Result "0-1"]
[ECO "E13"]
[WhiteElo "2171"]
[BlackElo "2373"]
[Annotator "TA"]
[PlyCount "86"]
[EventDate "2024.09.05"]
[EventType "team-tourn"]
[EventCountry "HUN"]
[SourceTitle "playchess.com"]
[Source "ChessBase"]
[SourceQuality "1"]
[WhiteTeam "Colombia"]
[BlackTeam "China"]
[WhiteTeamCountry "COL"]
[BlackTeamCountry "CHN"]
[TimeControl "40/5400+30:1800+30"]

{[%evp 16,86,-15,-14,-6,-12,-3,-8,20,-4,-9,-28,-23,-41,-54,-65,-72,-74,-75,-95,-84,-85,-84,-115,-115,-115,-100,-118,-122,-135,-135,-127,-129,-137,-122,-155,-117,-133,-116,-138,-129,-228,-128,-216,-212,-211,-185,-210,-189,-240,-251,-245,-245,-268,-257,-288,-264,-345,-306,-387,-416,-392,-377,-387,-371,-754,-714,-750,-747,-743,-738,-730,-718]} 1. d4 {[%emt 0:00:03]} Nf6 {[%emt 0:00:06]} 2. c4 {[%emt 0:00:10]} e6 {[%emt 0:00:02]} 3. Nf3 {[%emt 0:00:14]} b6 {[%emt 0:00:07]} 4. Nc3 {[%emt 0:00:24]} Bb4 {[%emt 0:00:10]} 5. Bg5 {[%emt 0:00:36][%cal Bc1g5,Bg5h4,Bh4g3][%mdl 32]} h6 {[%emt 0:00:08]} 6. Bh4 {[%emt 0:00:35]} Bb7 {[%emt 0:00:06]} 7. e3 {[%emt 0:00:39]} g5 {[%emt 0:00:04]} 8. Bg3 {[%emt 0:00:40]} Ne4 {[%emt 0:00:05]} 9. Qc2 {[%emt 0:01:25]} d6 {[%emt 0:00:05]} 10. Bd3 {[%emt 0:02:49]} Bxc3+ {[%emt 0:00:06]} 11. bxc3 {[%emt 0:00:10]} Nxg3 {[%emt 0:00:02] The position is equal.} 12. hxg3 {[%emt 0:02:45]} g4 {[%emt 0:00:01]} 13. Nd2 {[%emt 0:07:28]} Bxg2 {[%emt 0:05:09]} 14. Rh4 {[%emt 0:02:09]} h5 $1 {[%emt 0:02:13]} 15. Be4 {[%emt 0:07:49]} Bxe4 {[%emt 0:00:35]} 16. Qxe4 {[%emt 0:00:13]} Nd7 {[%emt 0:00:46]} 17. Ke2 {[%emt 0:00:41]} Nf6 {[%emt 0:02:06]} 18. Qc6+ {[%emt 0:03:01] [#]} Ke7 $1 {[%emt 0:01:26]} 19. Rah1 {[%emt 0:01:22]} Qd7 {[%emt 0:01:55]} 20. Qxd7+ {[%emt 0:10:55]} Kxd7 {[%emt 0:00:02]} 21. Kd3 {[%emt 0:05:53]} Rag8 {[%emt 0:02:49]} 22. e4 {[%emt 0:03:47]} Rg5 {[%emt 0:02:05]} 23. a4 {[%emt 0:08:53]} Rh6 {[%emt 0:07:52]} 24. Rb1 {[%emt 0:18:04]} a6 {[%emt 0:01:46]} 25. Nb3 {[%emt 0:06:03]} Ng8 {[%emt 0:06:39]} 26. Ra1 {[%emt 0:01:07]} Ne7 {[%emt 0:03:10]} 27. a5 {[%emt 0:03:11]} b5 {[%emt 0:01:32]} 28. c5 {[%emt 0:03:01]} (28. Nd2 $17 {might work better.}) 28... Kc6 {[%emt 0:02:34]} (28... f5 $19 {Strongly threatening ...fxe4+.} 29. cxd6 fxe4+ (29... cxd6 30. e5 $17) (29... Kxd6 30. Nc5 $11) 30. Kxe4 cxd6) 29. Re1 {[%emt 0:04:01]} (29. cxd6 $17 cxd6 30. Rhh1) 29... d5 $19 {[%emt 0:03:09]} 30. exd5+ {[%emt 0:01:27]} Rxd5 {[%emt 0:01:04] ...Rf5 is the strong threat.} ({Much less strong is} 30... Kxd5 31. Nd2) 31. Rh2 {[%emt 0:03:29]} Kd7 {[%emt 0:03:22]} 32. c4 {[%emt 0:01:28]} (32. Nd2 $142) 32... bxc4+ {[%emt 0:00:28]} 33. Kxc4 {[%emt 0:00:04]} Nc6 {[%emt 0:00:07]} 34. Re4 {[%emt 0:02:16]} Rf6 {[%emt 0:02:32]} 35. Re3 {[%emt 0:00:22]} Rdf5 {[%emt 0:01:45]} 36. Re2 {[%emt 0:00:29]} Rf3 {[%emt 0:00:02][%cal Of3b3] [#] Hoping for ...Rxb3!} 37. Rd2 {[%emt 0:00:37]} R6f5 {[%emt 0:00:12]} 38. Rg2 {[%emt 0:00:30]} Ke7 {[%emt 0:06:53]} 39. Rh2 {[%emt 0:00:21]} Rd5 {[%emt 0:00:06]} 40. Rd1 $2 {[%emt 0:00:43]} (40. Rh1) 40... Ne5+ {[%emt 0:00:20] Black is clearly winning.} 41. Kb4 {[%emt 0:30:29]} Nd3+ {[%emt 0:30:33]} 42. Rxd3 {[%emt 0:00:32]} Rxd3 {[%emt 0:00:01]} 43. Kc4 {[%emt 0:00:16]} Rd1 {[%emt 0:00:28] Weighted Error Value: White=0.37/Black=0.10 (very precise) .  Mistake:       	White=4     	Black=1      Inaccurate:     	White=2     	Black=1      OK:         	White=5     	Black=15     Best:        	---       	Black=2      Strong:       	---       	Black=2} 0-1

[Event "45th FIDE Womens Olympiad 2024"]
[Site "Budapest"]
[Date "2024.09.12"]
[Round "2.17"]
[White "Laamim, Roaa"]
[Black "Oyenga, Justine Anassika"]
[Result "1-0"]
[ECO "C47"]
[WhiteElo "1879"]
[BlackElo "1503"]
[Annotator "NA"]
[PlyCount "65"]
[EventDate "2024.09.05"]
[EventType "team-tourn"]
[EventCountry "HUN"]
[SourceTitle "playchess.com"]
[Source "ChessBase"]
[SourceQuality "1"]
[WhiteTeam "Morocco"]
[BlackTeam "Togo"]
[WhiteTeamCountry "MAR"]
[BlackTeamCountry "TOG"]
[TimeControl "40/5400+30:1800+30"]

1. e4 e5 2. Nf3 Nc6 3. d4 exd4 4. Nxd4 Nf6 5. Nc3 Bc5 6. Be3 Bb4 7. Nxc6 bxc6 8. Bd3 d5 9. exd5 cxd5 10. O-O O-O 11. h3 d4 12. Bxd4 Qxd4 13. Bxh7+ Nxh7 14. Qxd4 c5 15. Qe4 Rb8 16. Nd5 Bb7 17. Qc4 Bxd5 18. Qxd5 Nf6 19. Qf3 Rfe8 20. Rfd1 a6 21. a3 Ba5 22. b4 Bb6 23. g4 c4 24. Re1 Rbc8 25. Qb7 Bd4 26. Rad1 Rcd8 27. Rxe8+ Nxe8 28. Kf1 Nf6 29. c3 Rd7 30. Qc8+ Kh7 31. Rxd4 Rxd4 32. cxd4 c3 33. Qxc3 1-0

[Event "45th FIDE Womens Olympiad 2024"]
[Site "Budapest"]
[Date "2024.09.12"]
[Round "2.18"]
[White "Guo, Qi"]
[Black "Argote Heredia, Valentina"]
[Result "1-0"]
[ECO "E11"]
[WhiteElo "2367"]
[BlackElo "2144"]
[Annotator "TA"]
[PlyCount "79"]
[EventDate "2024.09.05"]
[EventType "team-tourn"]
[EventCountry "HUN"]
[SourceTitle "playchess.com"]
[Source "ChessBase"]
[SourceQuality "1"]
[WhiteTeam "China"]
[BlackTeam "Colombia"]
[WhiteTeamCountry "CHN"]
[BlackTeamCountry "COL"]
[TimeControl "40/5400+30:1800+30"]

{[%evp 21,79,27,33,7,6,3,25,9,24,17,23,14,13,22,11,16,49,20,33,45,77,72,46,55,62,51,47,29,102,84,112,55,91,65,151,136,121,45,27,18,48,52,264,205,212,198,241,161,239,233,355,339,366,372,389,385,1387,1386,1376,1318]} 1. d4 {[%emt 0:00:04]} Nf6 {[%emt 0:00:16]} 2. Nf3 {[%emt 0:00:17]} e6 {[%emt 0:00:09]} 3. c4 {[%emt 0:00:07]} Bb4+ {[%emt 0:00:10]} 4. Bd2 {[%emt 0:00:38]} Qe7 {[%emt 0:00:10]} 5. g3 {[%emt 0:00:39]} Nc6 {[%emt 0:01:00]} 6. Nc3 {[%emt 0:01:00]} O-O {[%emt 0:00:19]} 7. Bg2 {[%emt 0:00:07]} Bxc3 {[%emt 0:00:50]} 8. Bxc3 {[%emt 0:00:06]} Ne4 {[%emt 0:00:07]} 9. Rc1 {[%emt 0:00:09]} d6 {[%emt 0:02:48]} 10. O-O {[%emt 0:01:54]} f5 {[%emt 0:08:13]} 11. d5 {[%emt 0:05:01]} Nd8 {[%emt 0:01:37]} 12. b4 {[%emt 0:06:52]} a5 {[%emt 0:14:30]} 13. a3 {[%emt 0:00:58][%cal Ba2a3,Ba3b4][%mdl 32]} Bd7 {[%emt 0:03:51]} 14. Bb2 {[%emt 0:02:37] White has an edge.} (14. bxa5 Nxc3 15. Rxc3 e5 $11) 14... e5 {[%emt 0:02:53] [#]} 15. c5 $1 {[%emt 0:09:09]} Nf7 {[%emt 0:04:06]} (15... axb4 16. axb4) 16. Nd2 {[%emt 0:00:34]} Nf6 {[%emt 0:03:35]} 17. Nc4 {[%emt 0:03:49]} axb4 {[%emt 0:04:10]} 18. axb4 {[%emt 0:02:07]} Ra6 {[%emt 0:04:04]} 19. Qd3 {[%emt 0:14:12]} Rfa8 {[%emt 0:06:19]} 20. Na5 {[%emt 0:06:11]} dxc5 {[%emt 0:06:37]} 21. Nxb7 {[%emt 0:00:07]} e4 {[%emt 0:01:50]} 22. Qd2 {[%emt 0:00:52]} cxb4 {[%emt 0:07:41]} 23. Rxc7 {[%emt 0:00:11][%cal Od5d6] d6! is the strong threat. White is more active.} Ne8 {[%emt 0:03:50]} 24. Rcc1 {[%emt 0:07:42]} (24. Rxd7 $5 Qxd7 25. Nc5 $16 (25. Qxb4 $2 Ra4 $19)) 24... Rb6 {[%emt 0:02:45]} (24... Ra2 $11 {remains equal.}) 25. Nc5 $16 {[%emt 0:00:14]} Ra5 {[%emt 0:05:41]} 26. Nb3 {[%emt 0:04:28]} (26. Bd4 $16 {Hoping for Nxd7.} Rbb5 27. Rfd1) 26... Rab5 {[%emt 0:02:32]} 27. f3 {[%emt 0:03:52]} e3 {[%emt 0:07:04]} ({Better is} 27... Nf6 $14) 28. Qd3 {[%emt 0:00:38]} f4 {[%emt 0:01:29] [#]} 29. Rc4 {[%emt 0:00:39]} ({Much weaker is} 29. gxf4 $6 Rh6 $11) (29. Qe4 $1 $16 {[%cal Re4e7]} Qd6 (29... Qxe4 $2 30. fxe4 fxg3 31. hxg3 $18) 30. gxf4) 29... fxg3 $14 {[%emt 0:00:41]} 30. hxg3 {[%emt 0:00:06] And now Re4 would win.} Qg5 {[%emt 0:00:39]} 31. Nc5 {[%emt 0:05:16]} Bc8 {[%emt 0:03:32] This move loses the game for Black.} ({Black should try} 31... Rxc5 $1 $14 32. Rxc5 Rg6) 32. Ne4 {[%emt 0:01:08][%csl LRc8,LRg5]} Qd8 {[%emt 0:00:27]} 33. Qxe3 {[%emt 0:00:18]} Bb7 {[%emt 0:01:29]} 34. Rd1 {[%emt 0:03:11] Bh3 would now be deadly.} Rg6 {[%emt 0:00:37]} (34... Rxd5 {was worth a try.} 35. Rdd4 Rxd4 36. Rxd4 Qc8) 35. Rc5 {[%emt 0:04:07]} Rbb6 {[%emt 0:00:59]} (35... Rxc5 {might work better.} 36. Qxc5 h5) 36. f4 $18 {[%emt 0:02:34]} Ned6 {[%emt 0:00:10]} 37. Nxd6 {[%emt 0:03:58]} Nxd6 {[%emt 0:00:04]} 38. Bh3 {[%emt 0:03:33] Prevents Nf5. A strong pair of Bishops.} Qh4 $2 {[%emt 0:01:13] [#]} (38... Ne8 39. Bf5 Rh6) 39. Qe6+ $3 {[%emt 0:02:27][%mdl 512]} Kf8 {[%emt 0:00:50] [#]} (39... Kh8 40. Qxg6) 40. Qxg6 $3 {[%emt 0:00:20][%mdl 512] Weighted Error Value: White=0.18 (very precise) /Black=0.36.  Loses game:     	---       	Black=1      Mistake:       	White=2     	Black=5      Inaccurate:     	White=2     	Black=5      OK:         	White=9     	Black=8      Best:        	White=3     	Black=1      Brilliant:      	White=1     	---} 1-0

[Event "45th FIDE Womens Olympiad 2024"]
[Site "Budapest"]
[Date "2024.09.12"]
[Round "2.18"]
[White "Kponsou, Afiwa"]
[Black "Chemaou lilya"]
[Result "1/2-1/2"]
[ECO "A08"]
[WhiteElo "1453"]
[BlackElo "1565"]
[Annotator "NA"]
[PlyCount "108"]
[EventDate "2024.09.05"]
[EventType "team-tourn"]
[EventCountry "HUN"]
[SourceTitle "playchess.com"]
[Source "ChessBase"]
[SourceQuality "1"]
[WhiteTeam "Togo"]
[BlackTeam "Morocco"]
[WhiteTeamCountry "TOG"]
[BlackTeamCountry "MAR"]
[TimeControl "40/5400+30:1800+30"]

1. Nf3 Nf6 2. g3 g6 3. Bg2 Bg7 4. O-O O-O 5. d3 d5 6. Nbd2 c5 7. e4 dxe4 8. dxe4 Nc6 9. c3 Bg4 10. Re1 Ne5 11. Qb3 Nd3 12. Rd1 Qc7 13. h3 Nxc1 14. Raxc1 Be6 15. c4 h6 16. Qe3 Nd7 17. b3 Ne5 18. Nxe5 Qxe5 19. f4 Qd4 20. Nf1 Qxe3+ 21. Nxe3 Bd4 22. Kf2 Rfd8 23. Kf3 f5 24. Nd5 Bxd5 25. cxd5 Kf7 26. Bf1 Kg7 27. Bc4 a6 28. a4 Rab8 29. Re1 Re8 30. exf5 gxf5 31. Re6 Bf6 32. Rce1 b5 33. Bd3 bxa4 34. bxa4 Red8 35. Bxa6 Rxd5 36. Bc4 Rd4 37. Rc1 Rb4 38. Be2 Rxa4 39. Rxc5 Kf7 40. Rec6 Ra3+ 41. Rc3 Rxc3+ 42. Rxc3 Rxf4+ 43. Kxf4 Bxc3 44. Kxf5 e6+ 45. Ke4 e5 46. Kf5 Be1 47. g4 Bg3 48. Bc4+ Kg7 49. Bd5 Bf4 50. h4 Bg3 51. h5 Bf4 52. Be4 Bg5 53. Kxe5 Be3 54. Ke6 Bg5 1/2-1/2

[Event "45th FIDE Womens Olympiad 2024"]
[Site "Budapest"]
[Date "2024.09.12"]
[Round "2.19"]
[White "Chirivi C, Jenny Astrid"]
[Black "Ni, Shiqun"]
[Result "0-1"]
[ECO "D10"]
[WhiteElo "2120"]
[BlackElo "2348"]
[Annotator "TA"]
[PlyCount "84"]
[EventDate "2024.09.05"]
[EventType "team-tourn"]
[EventCountry "HUN"]
[SourceTitle "playchess.com"]
[Source "ChessBase"]
[SourceQuality "1"]
[WhiteTeam "Colombia"]
[BlackTeam "China"]
[WhiteTeamCountry "COL"]
[BlackTeamCountry "CHN"]
[TimeControl "40/5400+30:1800+30"]

{[%evp 9,84,11,34,35,37,33,33,20,22,20,16,11,8,14,12,12,17,0,0,-18,-12,-30,0,-19,0,-8,0,0,-14,-31,-31,-41,-40,-38,-37,-43,-42,-34,-39,-44,-41,-56,-49,-50,-49,-52,-34,-34,-34,-34,-34,-34,-34,-34,-34,-48,-41,-336,-350,-333,-350,-341,-344,-377,-375,-377,-374,-379,-361,-349,-360,-357,-352,-372,-357,-709,-697]} 1. d4 {[%emt 0:00:12]} d5 {[%emt 0:00:13]} 2. c4 {[%emt 0:00:45]} c6 {[%emt 0:00:14]} 3. cxd5 {[%emt 0:01:38]} cxd5 {[%emt 0:00:03]} 4. Nc3 {[%emt 0:00:40]} Nc6 {[%emt 0:05:53]} 5. Bf4 {[%emt 0:01:56]} e6 {[%emt 0:03:23]} 6. e3 {[%emt 0:01:00]} Bd6 {[%emt 0:00:05]} 7. Bxd6 {[%emt 0:01:19]} Qxd6 {[%emt 0:00:02]} 8. f4 {[%emt 0:01:09] White is slightly better.} Nge7 {[%emt 0:03:14]} 9. Nf3 {[%emt 0:07:11]} Bd7 {[%emt 0:03:59][%cal Bc8d7,Bd7e8,Be8g6][%mdl 32]} 10. Bd3 {[%emt 0:09:00]} f6 {[%emt 0:01:02]} 11. O-O {[%emt 0:02:49]} O-O {[%emt 0:00:18]} 12. Rc1 {[%emt 0:11:21]} Rac8 {[%emt 0:08:54]} 13. Bb1 {[%emt 0:08:29]} Be8 {[%emt 0:11:03]} 14. Ne1 {[%emt 0:04:54]} Bg6 {[%emt 0:06:08]} 15. Nd3 {[%emt 0:03:03]} Nf5 {[%emt 0:01:39]} 16. Qd2 {[%emt 0:05:06]} Qe7 {[%emt 0:08:19]} 17. Nb5 {[%emt 0:06:03]} a6 {[%emt 0:02:16]} 18. Nc3 {[%emt 0:00:39]} Nd6 {[%emt 0:00:22]} 19. b3 {[%emt 0:02:43]} b6 {[%emt 0:06:04]} 20. Nf2 {[%emt 0:07:04]} Bxb1 {[%emt 0:04:38]} 21. Rxb1 {[%emt 0:01:16]} Qb7 {[%emt 0:01:18]} 22. Na4 {[%emt 0:01:54]} Rc7 {[%emt 0:03:25]} 23. Rbc1 {[%emt 0:01:17]} Rfc8 {[%emt 0:00:15]} 24. Rfd1 {[%emt 0:05:28]} Ne7 {[%emt 0:01:54]} 25. Qe1 {[%emt 0:04:11]} Nef5 {[%emt 0:02:32]} 26. Nd3 {[%emt 0:01:04]} Rxc1 {[%emt 0:13:29]} 27. Rxc1 {[%emt 0:00:06]} Rxc1 {[%emt 0:00:10]} 28. Qxc1 {[%emt 0:01:09]} h5 {[%emt 0:00:07]} 29. g3 {[%emt 0:01:50]} a5 {[%emt 0:01:15]} 30. Nf2 {[%emt 0:03:11]} Qa6 {[%emt 0:03:56]} 31. Qd2 {[%emt 0:00:56] Repels Qe2} Qb5 {[%emt 0:00:59]} 32. Nb2 {[%emt 0:04:21]} Qc6 {[%emt 0:02:12]} 33. Kg2 $2 {[%emt 0:00:45][%mdl 8192] [#] Loses the game.} (33. Nbd3 $15) 33... Qc2 $3 $19 {[%emt 0:01:17][%mdl 512]} 34. Qxc2 {[%emt 0:01:54]} Nxe3+ {[%emt 0:00:02]} 35. Kf3 {[%emt 0:00:49]} Nxc2 {[%emt 0:00:02][%mdl 4096] Endgame. KNN-KNN} 36. Na4 {[%emt 0:00:33]} b5 {[%emt 0:01:55]} 37. Nc5 {[%emt 0:00:38]} Nxd4+ {[%emt 0:00:04]} 38. Ke3 {[%emt 0:00:06]} N6f5+ {[%emt 0:00:53]} 39. Kd3 {[%emt 0:00:09]} e5 {[%emt 0:02:16]} 40. fxe5 {[%emt 0:00:06]} fxe5 {[%emt 0:00:04]} 41. g4 {[%emt 0:30:58]} e4+ {[%emt 0:31:07]} 42. Kc3 $2 {[%emt 0:00:00] [#]} (42. Ncxe4 dxe4+ 43. Kxe4 hxg4 44. Nxg4) 42... b4+ {[%emt 0:00:00] Weighted Error Value: White=0.34/Black=0.04 (flawless) .  Loses game:     	White=1     	---        Mistake:       	White=1     	---        Inaccurate:     	---       	Black=1      OK:         	White=14    	Black=13     Best:        	---       	Black=1      Brilliant:      	---       	Black=1} 0-1

[Event "45th FIDE Womens Olympiad 2024"]
[Site "Budapest"]
[Date "2024.09.12"]
[Round "2.20"]
[White "Lu, Miaoyi"]
[Black "Mogollon Tobar, Nicolle Julieth"]
[Result "1-0"]
[ECO "B13"]
[WhiteElo "2438"]
[BlackElo "2045"]
[Annotator "TA"]
[PlyCount "81"]
[EventDate "2024.09.05"]
[EventType "team-tourn"]
[EventCountry "HUN"]
[SourceTitle "playchess.com"]
[Source "ChessBase"]
[SourceQuality "1"]
[WhiteTeam "China"]
[BlackTeam "Colombia"]
[WhiteTeamCountry "CHN"]
[BlackTeamCountry "COL"]
[TimeControl "40/5400+30:1800+30"]

{[%evp 11,81,29,30,30,27,19,25,16,15,26,35,25,25,14,12,6,41,59,54,33,78,82,96,68,70,53,45,43,48,62,68,42,50,16,43,35,60,28,68,59,70,73,66,71,88,83,84,27,75,76,129,71,144,149,785,769,789,770,2242,2337,2337,2293,2299,1995,2345,2105,2299,2014,5085,5073,5078,5061]} 1. e4 {[%emt 0:00:01]} c6 {[%emt 0:00:12]} 2. d4 {[%emt 0:00:03]} d5 {[%emt 0:00:12]} 3. exd5 {[%emt 0:00:02]} cxd5 {[%emt 0:00:16]} 4. Bd3 {[%emt 0:00:02]} Nf6 {[%emt 0:00:56]} 5. c3 {[%emt 0:00:11]} Bg4 {[%emt 0:01:30]} 6. Qb3 {[%emt 0:00:53]} Qc7 {[%emt 0:01:20]} 7. h3 {[%emt 0:00:52]} Bh5 {[%emt 0:01:24]} 8. g4 {[%emt 0:00:14]} Bg6 {[%emt 0:00:06]} 9. Bxg6 {[%emt 0:00:12] White has an edge.} hxg6 {[%emt 0:00:06]} 10. g5 {[%emt 0:00:03]} Nfd7 {[%emt 0:00:18]} 11. Qxd5 {[%emt 0:00:33]} e5 {[%emt 0:02:16]} 12. Be3 {[%emt 0:12:03]} Nc6 {[%emt 0:11:08]} 13. Nd2 {[%emt 0:16:17]} Nb6 {[%emt 0:08:05]} 14. Qe4 {[%emt 0:06:23] Threatens to win with Ngf3.} O-O-O {[%emt 0:07:35]} 15. Ne2 {[%emt 0:03:54]} Nd5 {[%emt 0:07:43]} 16. O-O-O {[%emt 0:09:00]} exd4 {[%emt 0:15:13]} 17. Bxd4 {[%emt 0:01:17]} Nxd4 {[%emt 0:06:50]} 18. Qxd4 {[%emt 0:04:36]} Bc5 {[%emt 0:05:35]} 19. Qg4+ {[%emt 0:00:17]} (19. Qxg7 $2 {perishes.} Rdg8 $19 (19... Bxf2 20. Ne4 $15) (19... Bxf2 20. Ne4 $15)) 19... Kb8 {[%emt 0:02:55]} 20. Ne4 {[%emt 0:00:02]} Bb6 {[%emt 0:01:02]} 21. Kb1 {[%emt 0:11:31]} Rhe8 {[%emt 0:06:25]} 22. Rhe1 {[%emt 0:10:10]} Ne7 {[%emt 0:06:16]} 23. N2g3 {[%emt 0:05:19]} Nc6 {[%emt 0:02:49]} 24. f4 {[%emt 0:03:13]} Rxd1+ {[%emt 0:04:03]} 25. Rxd1 {[%emt 0:00:37]} Rd8 {[%emt 0:00:27] Repels Rd7} 26. f5 {[%emt 0:05:17]} Ne5 {[%emt 0:04:34]} 27. Qe2 {[%emt 0:00:01]} Nc4 {[%emt 0:02:26]} 28. fxg6 {[%emt 0:07:30]} fxg6 {[%emt 0:00:13][%cal Bf7g6,Bg6f5][%mdl 32]} 29. Rd3 {[%emt 0:00:37]} (29. Rxd8+ $16 Qxd8 30. b3 (30. Qxc4 $2 Qd1#)) 29... Rxd3 {[%emt 0:01:38]} (29... Rh8 $11 {feels stronger.}) 30. Qxd3 $16 {[%emt 0:00:02]} Ne3 {[%emt 0:00:44] Prevents Qd5.} (30... Qf7 $142) 31. Nd6 {[%emt 0:00:43]} (31. Nf1 $142 Nf5 32. Nfd2) 31... Bc5 {[%emt 0:00:58]} (31... Qd7 $142) 32. Nge4 {[%emt 0:03:54] White is more active. Excellent horsemanship.} Nf5 $2 {[%emt 0:00:37][%mdl 8192] [#] This costs Black the game.} (32... Qc6 $16 33. Nf7 Bb6) 33. Nxf5 $18 {[%emt 0:00:31] White is clearly winning.} gxf5 {[%emt 0:00:05]} 34. Nxc5 {[%emt 0:00:24]} Qxc5 {[%emt 0:00:13][%mdl 4096] Endgame. KQ-KQ} 35. Qd8+ {[%emt 0:00:23]} Qc8 {[%emt 0:00:04]} 36. Qxc8+ {[%emt 0:00:37]} Kxc8 {[%emt 0:00:05]} 37. Kc2 {[%emt 0:00:29]} Kd7 {[%emt 0:00:52]} 38. Kd3 {[%emt 0:00:02]} Ke6 {[%emt 0:01:00]} 39. Kd4 {[%emt 0:00:02]} g6 {[%emt 0:00:42]} 40. c4 {[%emt 0:00:45]} b6 {[%emt 0:00:58]} 41. b4 {[%emt 0:30:29] Weighted Error Value: White=0.14 (very precise) /Black=0.21 (precise) .  Loses game:     	---       	Black=1      Mistake:       	White=2     	Black=3      Inaccurate:     	White=3     	Black=4      OK:         	White=8     	Black=8      Best:        	White=3     	Black=3} 1-0

[Event "45th FIDE Womens Olympiad 2024"]
[Site "Budapest"]
[Date "2024.09.12"]
[Round "2.21"]
[White "Osmak, Yuliia"]
[Black "Martynkova, Olena"]
[Result "0-1"]
[ECO "D94"]
[WhiteElo "2471"]
[BlackElo "2176"]
[Annotator "TA"]
[PlyCount "67"]
[EventDate "2024.09.05"]
[EventType "team-tourn"]
[EventCountry "HUN"]
[SourceTitle "playchess.com"]
[Source "ChessBase"]
[SourceQuality "1"]
[WhiteTeam "Ukraine"]
[BlackTeam "Lithuania"]
[WhiteTeamCountry "UKR"]
[BlackTeamCountry "LTU"]
[TimeControl "40/5400+30:1800+30"]

{[%evp 18,67,45,52,40,27,40,27,77,64,87,79,108,54,78,88,78,40,43,20,16,0,0,18,0,-67,-74,-125,-114,-118,-121,-119,-137,-507,-492,-507,-506,-514,-504,-529,-541,-531,-546,-536,-536,-951,-947,-995,-940,-2514,-1614,-4902]} 1. d4 {[%emt 0:00:03]} d5 {[%emt 0:00:20]} 2. c4 {[%emt 0:00:04]} c6 {[%emt 0:00:26]} 3. Nf3 {[%emt 0:00:05]} Nf6 {[%emt 0:00:35][%cal Bg8f6,Bf6d5,Bd5c3][%mdl 32]} 4. e3 {[%emt 0:00:11]} g6 {[%emt 0:03:52]} 5. Nc3 {[%emt 0:00:11]} Bg7 {[%emt 0:00:35]} 6. Be2 {[%emt 0:00:09]} O-O {[%emt 0:01:05]} 7. O-O {[%emt 0:00:04]} Nbd7 {[%emt 0:04:15]} 8. cxd5 {[%emt 0:05:22]} Nxd5 {[%emt 0:03:54]} 9. e4 {[%emt 0:05:10]} Nxc3 {[%emt 0:01:48]} 10. bxc3 {[%emt 0:00:04]} e5 {[%emt 0:03:10]} 11. Be3 {[%emt 0:05:42]} Re8 {[%emt 0:11:05]} 12. Qc2 {[%emt 0:07:05]} Qc7 {[%emt 0:05:22]} (12... exd4 $11 13. cxd4 Qe7) 13. Rad1 {[%emt 0:02:03]} exd4 {[%emt 0:07:13]} 14. cxd4 {[%emt 0:00:28]} Nb6 {[%emt 0:07:04]} 15. d5 {[%emt 0:11:04]} (15. a4 $16) 15... Bg4 {[%emt 0:05:24]} 16. d6 {[%emt 0:03:53]} Qd7 {[%emt 0:06:17]} 17. Rd2 {[%emt 0:03:57]} Bxf3 {[%emt 0:04:42]} 18. Bxf3 {[%emt 0:01:29]} Qe6 {[%emt 0:00:59]} 19. Rb1 {[%emt 0:15:43]} Red8 {[%emt 0:04:22]} 20. Bc5 {[%emt 0:12:50][%cal Og2g3]} Be5 {[%emt 0:05:18]} 21. a4 {[%emt 0:11:13]} (21. Rbd1 $11) 21... Nc4 $15 {[%emt 0:05:28]} 22. Bg4 {[%emt 0:02:08] [#]} Bxh2+ $1 $17 {[%emt 0:05:12]} 23. Kxh2 {[%emt 0:02:32]} Qe5+ {[%emt 0:02:00]} ({Worse is} 23... Qxg4 24. Qxc4 Qf4+ 25. g3 Qxd2 26. Rxb7 $18) 24. g3 {[%emt 0:01:08]} Nxd2 {[%emt 0:02:16]} (24... Qxc5 $2 {loses.} 25. Rxb7 Re8 26. d7 $18) 25. Rb4 {[%emt 0:05:08][%mdl 8192] This move loses the game for White.} (25. Re1 $17 Nb3 26. Be3) 25... b6 $19 {[%emt 0:03:25] Black is clearly winning.} 26. Bd4 {[%emt 0:02:38]} Qxd6 {[%emt 0:00:15]} (26... Qxe4 27. Qxd2 Qxg4 28. Bxb6 $17) 27. Qxd2 {[%emt 0:02:20][%cal Od2h6]} c5 {[%emt 0:00:23]} 28. e5 {[%emt 0:01:01]} Qd5 {[%emt 0:02:42]} 29. e6 {[%emt 0:00:16][%cal Od2f4]} cxb4 {[%emt 0:03:17]} 30. exf7+ {[%emt 0:00:40]} Qxf7 {[%emt 0:00:55]} 31. Qe1 {[%emt 0:00:41]} Re8 {[%emt 0:00:45] Inhibits Qe5.} (31... Rxd4 $2 32. Be6 $19) 32. Qxb4 {[%emt 0:00:04]} Re4 {[%emt 0:00:18][%cal Oa8d8] [#] And now ...Rd8! would win.} 33. f3 {[%emt 0:00:41]} Re2+ {[%emt 0:00:38]} 34. Kh1 {[%emt 0:00:50] Weighted Error Value: White=0.95/Black=0.05 (flawless) .  Loses game:     	White=1     	---        Mistake:       	White=3     	Black=1      Inaccurate:     	White=2     	Black=1      OK:         	White=6     	Black=11     Best:        	White=1     	Black=1      Strong:       	---       	Black=1} 0-1